[Event "3rd Matrix Cup 2024"]
[Site "New Delhi"]
[Date "2024.04.09"]
[Round "7.5"]
[White "Rupesh B Ramchandra"]
[Black "Mrityunjay Kumar"]
[Result "0-1"]
[ECO "D00"]
[WhiteElo "1819"]
[BlackElo "1900"]
[Annotator "RC"]
[PlyCount "68"]
[EventDate "2024.04.07"]
[EventType "swiss"]
[EventCountry "IND"]
[SourceTitle "playchess.com"]
[Source "ChessBase"]
[SourceQuality "1"]
[TimeControl "5400+30"]

1. d4 {[%emt 0:00:11]} Nf6 {[%emt 0:00:07]} 2. Bf4 {[%emt 0:00:09]} d5 {[%emt 0:00:13]} 3. Nc3 {[%emt 0:00:15]} a6 {[%emt 0:00:10]} 4. e3 {[%emt 0:00:48]} e6 {[%emt 0:00:10]} 5. Nf3 {[%emt 0:01:20]} c5 {[%emt 0:00:10]} 6. Ne5 {[%emt 0:01:07]} Nc6 {[%emt 0:00:57]} 7. Be2 {[%emt 0:03:47]} cxd4 {[%emt 0:00:57]} 8. exd4 {[%emt 0:00:59]} Qb6 {[%emt 0:02:02]} 9. Nxc6 {[%emt 0:04:07]} bxc6 {[%emt 0:00:13]} 10. O-O {[%emt 0:02:23]} Qa7 {[%emt 0:03:46]} 11. Na4 {[%emt 0:02:41]} Be7 {[%emt 0:00:12]} 12. Qd2 {[%emt 0:01:19]} a5 {[%emt 0:00:50]} 13. Be5 {[%emt 0:03:42]} Ne4 {[%emt 0:03:09]} 14. Qf4 {[%emt 0:02:21]} f6 {[%emt 0:00:36]} 15. Bh5+ {[%emt 0:14:16]} Kd8 {[%emt 0:04:37]} 16. Rad1 {[%emt 0:02:15]} fxe5 {[%emt 0:01:48]} 17. dxe5 {[%emt 0:00:13]} Bd7 {[%emt 0:00:09]} 18. Bf3 {[%emt 0:02:39]} Ng5 {[%emt 1:19:24]} 19. c4 {[%emt 0:01:56]} Rf8 {[%emt 0:00:00]} 20. Qg4 {[%emt 0:00:43]} Nxf3+ {[%emt 0:00:00]} 21. gxf3 {[%emt 0:00:07]} Rf7 {[%emt 0:00:00]} 22. cxd5 {[%emt 0:00:47]} cxd5 {[%emt 0:00:00]} 23. Nc3 {[%emt 0:01:53]} Rf5 24. h4 {[%emt 0:01:11]} g6 {[%emt 0:00:00]} 25. Rfe1 {[%emt 0:06:35]} Rb8 {[%emt 0:00:00]} 26. f4 {[%emt 0:11:26]} Rxb2 {[%emt 0:00:00]} 27. Ne2 {[%emt 0:02:06]} Bc5 {[%emt 0:00:00]} 28. Qf3 {[%emt 0:00:45]} Bb5 {[%emt 0:00:00]} 29. Rc1 {[%emt 0:02:22]} Bxe2 {[%emt 0:00:00]} 30. Rxe2 {[%emt 0:00:10]} Rxe2 {[%emt 0:00:00]} 31. Qxe2 {[%emt 0:00:25]} Rxf4 {[%emt 0:00:00]} 32. Qb5 {[%emt 0:00:22]} Bxf2+ {[%emt 0:00:00]} 33. Kg2 {[%emt 0:00:06]} Rg4+ {[%emt 0:00:00]} 34. Kh2 {[%emt 0:00:14]} Bg1+ {[%emt 0:00:00]} 0-1

[Event "3rd Matrix Cup 2024"]
[Site "New Delhi"]
[Date "2024.04.09"]
[Round "7.6"]
[White "Jyotshnav Talukdar"]
[Black "Om Batra"]
[Result "0-1"]
[ECO "A46"]
[WhiteElo "1877"]
[BlackElo "1804"]
[Annotator "NA RC"]
[PlyCount "106"]
[EventDate "2024.04.07"]
[EventType "swiss"]
[EventCountry "IND"]
[SourceTitle "playchess.com"]
[Source "ChessBase"]
[SourceQuality "1"]
[TimeControl "5400+30"]

1. d4 {[%emt 0:02:21]} Nf6 {[%emt 0:08:42]} 2. Bf4 {[%emt 0:00:07]} e6 {[%emt 0:00:06]} 3. Nf3 {[%emt 0:00:04]} c5 {[%emt 0:00:03]} 4. e3 {[%emt 0:00:05]} cxd4 {[%emt 0:00:07]} 5. exd4 {[%emt 0:00:02]} b6 {[%emt 0:00:05]} 6. Nc3 {[%emt 0:00:14] A46: 1 d4 Nf6 2 Nf3 e6: Torre, London and Colle Systems.} Be7 {[%emt 0:01:16]} 7. Bd3 {[%emt 0:00:48]} Ba6 {[%emt 0:02:36]} 8. O-O {[%emt 0:03:08]} d6 {[%emt 0:01:27]} 9. Bxa6 {[%emt 0:04:34]} Nxa6 {[%emt 0:00:02]} 10. Qe2 {[%emt 0:00:01]} Nc7 {[%emt 0:00:06]} 11. h3 {[%emt 0:00:18]} Qd7 {[%emt 0:00:09]} 12. a4 {[%emt 0:02:46]} a6 {[%emt 0:02:46]} 13. Ne4 {[%emt 0:06:30]} Nfd5 {[%emt 0:05:59]} 14. Bh2 {[%emt 0:00:18]} b5 {[%emt 0:00:25]} 15. a5 {[%emt 0:13:25]} O-O {[%emt 0:01:34]} 16. c3 {[%emt 0:06:18]} Rab8 {[%emt 0:08:58]} 17. Rfe1 {[%emt 0:02:09]} h6 {[%emt 0:01:36]} 18. Qd3 {[%emt 0:02:35]} Rfc8 {[%emt 0:04:28]} 19. g4 {[%emt 0:03:42]} f5 {[%emt 0:03:55]} 20. gxf5 {[%emt 0:01:09]} exf5 {[%emt 0:00:01]} 21. Ng3 {[%emt 0:00:09]} Rf8 {[%emt 0:00:05]} 22. Nh5 {[%emt 0:04:59]} f4 {[%emt 0:09:45]} 23. Qg6 {[%emt 0:03:32]} Rf7 {[%emt 0:00:27]} 24. Kg2 {[%emt 0:03:53]} Rbf8 {[%emt 0:01:48]} 25. Rg1 {[%emt 0:03:22]} Qf5 {[%emt 0:11:00]} 26. Kh1 {[%emt 0:00:07]} Qxh3 {[%emt 0:03:17]} 27. Nxg7 {[%emt 0:05:27]} Qxf3+ {[%emt 0:00:11]} 28. Rg2 {[%emt 0:00:01]} Rf6 {[%emt 0:01:25]} 29. Qh5 {[%emt 0:00:02]} Qxh5 {[%emt 0:02:02]} 30. Nxh5+ $19 {[%emt 0:00:01]} Kh8 {[%emt 0:00:35]} 31. Nxf6 {[%emt 0:00:02]} Bxf6 {[%emt 0:00:12]} 32. Re1 {[%emt 0:01:07]} Re8 {[%emt 0:05:40]} 33. Rgg1 {[%emt 0:00:17]} Rxe1 {[%emt 0:00:12]} 34. Rxe1 {[%emt 0:00:01]} Kg7 {[%emt 0:00:32]} 35. Kg2 {[%emt 0:00:01]} Bg5 {[%emt 0:01:27]} 36. Kf3 {[%emt 0:00:08]} Kf6 {[%emt 0:00:30]} 37. Ke4 {[%emt 0:01:55]} h5 {[%emt 0:05:54]} 38. Rc1 {[%emt 0:01:06]} Ke6 {[%emt 0:00:28]} 39. b3 {[%emt 0:05:27]} Nf6+ {[%emt 0:02:49]} 40. Kd3 {[%emt 0:01:26]} Ng4 {[%emt 0:00:25]} 41. Bg1 {[%emt 0:00:47]} f3 {[%emt 0:00:01]} 42. Re1+ {[%emt 0:00:55]} Kf5 {[%emt 0:00:07]} 43. c4 {[%emt 0:00:04]} b4 {[%emt 0:00:30]} 44. c5 {[%emt 0:00:41]} d5 {[%emt 0:00:17]} 45. Ra1 {[%emt 0:00:21]} h4 {[%emt 0:00:24]} 46. Ra4 {[%emt 0:00:08]} h3 {[%emt 0:00:13]} 47. Rxb4 {[%emt 0:00:12]} Nxf2+ {[%emt 0:00:34]} 48. Kc2 {[%emt 0:00:30]} Ng4 {[%emt 0:02:45]} 49. Rb7 {[%emt 0:02:22]} Bf4 {[%emt 0:01:12]} 50. Rb8 {[%emt 0:00:49]} f2 {[%emt 0:00:07]} 51. Rf8+ {[%emt 0:00:37]} Ke4 {[%emt 0:00:10]} 52. Bxf2 {[%emt 0:00:04]} h2 {[%emt 0:00:12]} 53. Rh8 {[%emt 0:00:05]} Bh6 {[%emt 0:00:10]} 0-1

[Event "3rd Matrix Cup 2024"]
[Site "New Delhi"]
[Date "2024.04.09"]
[Round "7.7"]
[White "Prithvi Sharma"]
[Black "Akshat Negi"]
[Result "1/2-1/2"]
[ECO "C84"]
[WhiteElo "1858"]
[BlackElo "1790"]
[Annotator "NA RC"]
[PlyCount "86"]
[EventDate "2024.04.07"]
[EventType "swiss"]
[EventCountry "IND"]
[SourceTitle "playchess.com"]
[Source "ChessBase"]
[SourceQuality "1"]
[TimeControl "5400+30"]

1. e4 {[%emt 0:00:30]} e5 {[%emt 0:00:30]} 2. Nf3 {[%emt 0:00:30]} Nc6 {[%emt 0:00:30]} 3. Bb5 {[%emt 0:00:30]} Nf6 {[%emt 0:00:30]} 4. d3 {[%emt 0:00:30]} d6 {[%emt 0:00:30]} 5. c3 {[%emt 0:00:30]} Be7 {[%emt 0:00:30]} 6. h3 {[%emt 0:00:30]} a6 {[%emt 0:00:30]} 7. Ba4 {[%emt 0:00:30]} b5 {[%emt 0:00:30]} 8. Bc2 {[%emt 0:00:30]} d5 {[%emt 0:01:24]} 9. O-O {[%emt 0:08:09]} O-O {[%emt 0:00:57]} 10. Nbd2 {[%emt 0:03:49]} h6 {[%emt 0:04:43]} 11. Re1 {[%emt 0:13:52]} dxe4 {[%emt 0:00:22]} 12. dxe4 {[%emt 0:02:40]} Be6 {[%emt 0:00:02]} 13. Nf1 {[%emt 0:02:47]} Qxd1 {[%emt 0:00:20]} 14. Rxd1 {[%emt 0:00:12]} Rfd8 {[%emt 0:00:04]} 15. Be3 {[%emt 0:03:47]} Nd7 {[%emt 0:02:22]} 16. N3d2 {[%emt 0:06:02]} a5 {[%emt 0:05:55]} 17. a4 {[%emt 0:06:20]} b4 {[%emt 0:00:15]} 18. Bb3 {[%emt 0:00:38]} Bxb3 {[%emt 0:02:11]} 19. Nxb3 {[%emt 0:00:02]} bxc3 {[%emt 0:02:17]} 20. bxc3 {[%emt 0:00:22]} Nb6 {[%emt 0:00:59]} 21. Bxb6 {[%emt 0:02:37]} cxb6 {[%emt 0:00:08]} 22. Ne3 {[%emt 0:00:55]} Rxd1+ {[%emt 0:20:22]} 23. Rxd1 {[%emt 0:00:11]} Kf8 {[%emt 0:01:25]} 24. Nd5 {[%emt 0:01:28]} Bd8 {[%emt 0:00:12]} 25. Kf1 {[%emt 0:10:32]} Ne7 {[%emt 0:04:13]} 26. Nxe7 {[%emt 0:03:26]} Kxe7 {[%emt 0:01:27]} 27. c4 {[%emt 0:00:01]} Rc8 {[%emt 0:00:46]} 28. Rc1 {[%emt 0:00:30]} Kd6 {[%emt 0:00:27]} 29. Ke2 {[%emt 0:00:14]} Kc6 {[%emt 0:00:28]} 30. Rd1 {[%emt 0:01:31]} Be7 {[%emt 0:00:37]} 31. Rd5 {[%emt 0:00:29]} f6 {[%emt 0:00:25]} 32. Kd3 {[%emt 0:01:05]} g6 {[%emt 0:00:22]} 33. c5 {[%emt 0:10:19]} bxc5 {[%emt 0:06:53]} 34. Nxa5+ {[%emt 0:00:23]} Kc7 {[%emt 0:01:46]} 35. Nb3 {[%emt 0:01:52]} Kb6 {[%emt 0:05:37]} 36. Kc4 {[%emt 0:06:19]} Ra8 {[%emt 0:01:17]} 37. a5+ {[%emt 0:02:05]} Kc6 {[%emt 0:00:06]} 38. Nxc5 {[%emt 0:00:54]} Rxa5 {[%emt 0:00:18]} 39. Nb3 {[%emt 0:00:21]} Ra4+ {[%emt 0:00:54]} 40. Kd3 {[%emt 0:00:17]} Ra2 {[%emt 0:03:01]} 41. Ke3 {[%emt 0:01:13]} Ra3 {[%emt 0:03:32]} 42. Rd3 {[%emt 0:00:01]} f5 {[%emt 0:00:12]} 43. f4 {[%emt 0:01:31]} exf4+ {[%emt 0:21:05]} 1/2-1/2

[Event "3rd Matrix Cup 2024"]
[Site "New Delhi"]
[Date "2024.04.09"]
[Round "7.8"]
[White "Vandan Alankar Sawai"]
[Black "Shreyash Singh"]
[Result "0-1"]
[ECO "B15"]
[WhiteElo "1813"]
[BlackElo "1853"]
[Annotator "NA RC"]
[PlyCount "80"]
[EventDate "2024.04.07"]
[EventType "swiss"]
[EventCountry "IND"]
[SourceTitle "playchess.com"]
[Source "ChessBase"]
[SourceQuality "1"]
[TimeControl "5400+30"]

1. e4 {[%emt 1:31:00]} c6 {[%emt 0:00:12]} 2. d4 {[%emt 0:00:00]} d5 {[%emt 0:00:04]} 3. Nc3 {[%emt 0:00:00]} dxe4 {[%emt 0:00:04]} 4. Nxe4 {[%emt 0:00:00]} Nf6 {[%emt 0:00:04]} 5. Nxf6+ {[%emt 0:00:00]} exf6 {[%emt 0:00:04]} 6. c3 {[%emt 0:00:00]} Bd6 {[%emt 0:00:05]} 7. Bd3 {[%emt 0:00:00]} O-O {[%emt 0:00:06]} 8. Ne2 {[%emt 0:00:00]} Re8 {[%emt 0:00:26]} 9. O-O {[%emt 0:00:00]} Nd7 {[%emt 0:00:16]} 10. Ng3 {[%emt 0:00:00]} Nf8 {[%emt 0:01:19]} 11. f4 {[%emt 0:00:00]} Qc7 {[%emt 0:01:32]} 12. Qf3 {[%emt 0:00:00]} c5 {[%emt 0:02:36]} 13. d5 {[%emt 0:00:00]} c4 {[%emt 0:00:44]} 14. Bc2 {[%emt 0:00:00]} Ng6 {[%emt 0:01:47]} 15. Ne4 {[%emt 0:00:00]} Bd7 {[%emt 0:19:11]} 16. g3 $17 {[%emt 0:00:00]} (16. Be3 $11) 16... Bc5+ {[%emt 0:03:35]} 17. Kh1 {[%emt 0:00:00]} f5 {[%emt 0:13:16]} 18. Nd2 {[%emt 0:00:00]} Ne7 {[%emt 0:06:59]} 19. Nxc4 {[%emt 0:00:00]} Nxd5 {[%emt 0:00:59]} 20. Ne5 {[%emt 0:00:00]} Rxe5 {[%emt 0:02:34]} 21. fxe5 {[%emt 0:00:00]} Bc6 {[%emt 0:00:26]} 22. Bxf5 {[%emt 0:00:00]} Nxc3 {[%emt 0:02:12]} 23. bxc3 {[%emt 0:00:00]} Qxe5 {[%emt 0:00:46]} 24. Bd3 {[%emt 0:00:00]} Bxf3+ {[%emt 0:04:24]} 25. Rxf3 {[%emt 0:00:00]} Qe1+ {[%emt 0:04:18]} 26. Kg2 {[%emt 0:00:00]} Re8 {[%emt 0:02:29]} 27. Rb1 {[%emt 0:00:00]} Re2+ {[%emt 0:33:32]} 28. Kh3 {[%emt 0:13:30]} Rxh2+ {[%emt 0:00:00]} 29. Kxh2 {[%emt 0:00:00]} Qg1+ {[%emt 0:00:00]} 30. Kh3 {[%emt 0:00:00]} Qh1+ {[%emt 0:00:00]} 31. Kg4 {[%emt 0:00:00]} h5+ {[%emt 0:00:00]} 32. Kf4 {[%emt 0:00:00]} g5+ {[%emt 0:00:00]} 33. Ke4 {[%emt 0:00:00]} f5+ {[%emt 0:00:00]} 34. Kd5 {[%emt 0:00:00]} Qxf3+ {[%emt 0:00:00]} 35. Kc4 {[%emt 0:00:00]} b6 {[%emt 0:00:00]} 36. Bxg5 {[%emt 0:00:00]} Qg4+ {[%emt 0:00:00]} 37. Bf4 {[%emt 0:00:00]} h4 {[%emt 0:00:00]} 38. Kb5 {[%emt 0:00:00]} hxg3 {[%emt 0:00:00]} 39. Bc4+ {[%emt 0:00:00]} Kg7 {[%emt 0:00:00]} 40. Be5+ {[%emt 0:00:00]} Kg6 {[%emt 0:00:00]} 0-1

[Event "3rd Matrix Cup 2024"]
[Site "New Delhi"]
[Date "2024.04.09"]
[Round "8.1"]
[White "Kumar, Gaurav"]
[Black "Aronyak Ghosh"]
[Result "0-1"]
[ECO "A30"]
[WhiteElo "2083"]
[BlackElo "2517"]
[Annotator "TA"]
[PlyCount "72"]
[EventDate "2024.04.07"]
[EventType "swiss"]
[EventCountry "IND"]
[SourceTitle "playchess.com"]
[Source "ChessBase"]
[SourceQuality "1"]
[TimeControl "5400+30"]

{[%evp 16,72,0,-8,-1,-68,-63,-65,-64,-58,-58,-60,-66,-54,-64,-53,-61,-56,-51,-63,-53,-62,-54,-69,-67,-87,-56,-112,-92,-157,-154,-204,-152,-149,-159,-153,-160,-222,-212,-252,-158,-473,-457,-456,-458,-1024,-1016,-1001,-997,-981,-964,-902,-884,-1021,-1020,-921,-900,-29983,-29983]} 1. Nf3 {[%emt 0:05:15]} Nf6 {[%emt 0:01:27]} 2. c4 {[%emt 0:00:24]} b6 {[%emt 0:00:45]} 3. g3 {[%emt 0:02:11]} c5 {[%emt 0:00:47]} 4. Bg2 {[%emt 0:00:23]} Bb7 {[%emt 0:00:05]} 5. Nc3 {[%emt 0:01:13]} g6 {[%emt 0:01:08]} 6. O-O {[%emt 0:00:57]} Bg7 {[%emt 0:00:11]} 7. d3 {[%emt 0:00:28]} O-O {[%emt 0:05:39]} 8. e4 {[%emt 0:04:58]} Nc6 {[%emt 0:00:41]} 9. h3 {[%emt 0:01:23]} e6 {[%emt 0:10:31]} 10. e5 {[%emt 0:17:27]} (10. Re1 $11) 10... Ne8 $15 {[%emt 0:00:50]} 11. Bg5 {[%emt 0:00:11]} Qb8 {[%emt 0:09:05][%cal Oh7h6] Black is slightly better.} 12. Qd2 {[%emt 0:01:03]} d6 {[%emt 0:09:11]} ({Much weaker is} 12... Bxe5 13. Nxe5 Qxe5 14. Rae1 $11) 13. exd6 {[%emt 0:03:45]} Nxd6 {[%emt 0:00:14]} 14. Bh6 {[%emt 0:18:23]} Rd8 {[%emt 0:06:46][%cal Od6c4]} 15. Bxg7 {[%emt 0:03:37]} Kxg7 {[%emt 0:00:14]} 16. b3 {[%emt 0:00:51]} Nf5 {[%emt 0:01:46]} 17. Ne4 {[%emt 0:09:06]} Nfd4 {[%emt 0:00:49]} 18. Nxd4 {[%emt 0:01:36]} Rxd4 {[%emt 0:01:25]} 19. Rad1 {[%emt 0:01:30]} Qc7 {[%emt 0:04:21]} 20. h4 {[%emt 0:03:27][%cal Oh4h5]} h6 {[%emt 0:07:53]} 21. h5 {[%emt 0:02:16]} gxh5 $17 {[%emt 0:02:10][%cal Oh5h4]} 22. Nc3 {[%emt 0:07:06] [#]} (22. Qb2 $142) 22... Rg4 $1 {[%emt 0:04:19]} 23. Ne2 {[%emt 0:01:45]} (23. Nb5 $17 Qe7 24. Qe2) 23... Nd4 {[%emt 0:02:40]} 24. Nxd4 {[%emt 0:02:43]} Rxd4 {[%emt 0:00:52]} ({Don't do} 24... cxd4 25. Bxb7 Qxb7 26. Rfe1 $17) 25. Bxb7 {[%emt 0:02:50]} Qxb7 {[%emt 0:00:01]} 26. Qe2 {[%emt 0:00:07]} (26. Rfe1 $17) 26... h4 $19 {[%emt 0:02:13]} 27. f4 {[%emt 0:02:26]} Rg8 {[%emt 0:05:57] Strongly threatening ...Kh7.} 28. gxh4 $2 {[%emt 0:01:15] This costs White the game.} (28. Qg4+ $17 Kh7 29. Qxh4) 28... Kh7+ {[%emt 0:07:46]} 29. Kh2 {[%emt 0:00:02]} Qe7 {[%emt 0:00:34]} 30. Qh5 {[%emt 0:05:46]} (30. Qe1 $142) 30... Qf6 {[%emt 0:03:20]} 31. Kh1 {[%emt 0:00:18]} Rg3 {[%emt 0:00:15]} 32. Kh2 {[%emt 0:00:31]} Rg6 {[%emt 0:00:53]} 33. Kh1 {[%emt 0:00:16] [#]} e5 $1 {[%emt 0:03:16][%mdl 512] ...Qc6+ is the strong threat.} 34. Rf2 {[%emt 0:01:03]} Rxf4 {[%emt 0:00:31]} 35. Rxf4 {[%emt 0:00:07]} exf4 {[%emt 0:00:45]} 36. Rf1 {[%emt 0:01:19] [#]} f3 $1 {[%emt 0:00:43][%mdl 512] Weighted Error Value: White=0.66/Black=0.10 (very precise) .  Loses game:     	White=1     	---        Mistake:       	White=6     	---        Inaccurate:     	---       	Black=2      OK:         	White=7     	Black=9      Best:        	White=2     	Black=3} 0-1

[Event "3rd Matrix Cup 2024"]
[Site "New Delhi"]
[Date "2024.04.09"]
[Round "8.2"]
[White "Neelash Saha"]
[Black "Kishan Kumar"]
[Result "1/2-1/2"]
[ECO "A14"]
[WhiteElo "2464"]
[BlackElo "1933"]
[Annotator "TA"]
[PlyCount "142"]
[EventDate "2024.04.07"]
[EventType "swiss"]
[EventCountry "IND"]
[SourceTitle "playchess.com"]
[Source "ChessBase"]
[SourceQuality "1"]
[TimeControl "5400+30"]

{[%evp 18,142,18,16,27,17,46,4,56,40,95,91,108,110,102,102,94,81,102,104,115,96,87,57,210,164,148,173,217,213,236,196,199,212,216,216,211,186,174,29,33,12,53,-9,43,16,13,13,15,8,14,0,19,8,17,18,34,4,3,0,0,-18,0,0,0,0,8,0,0,0,0,0,0,0,0,0,0,0,0,0,0,0,0,0,0,0,8,8,8,8,29,29,29,29,29,29,114,114,114,98,98,98,98,76,76,0,76,8,8,8,8,8,8,8,8,0,0,0,0,0,0,0,0,0,0,0,0]} 1. Nf3 {[%emt 0:00:33]} d5 {[%emt 0:00:21]} 2. e3 {[%emt 0:00:12]} Nf6 {[%emt 0:00:29]} 3. c4 {[%emt 0:00:05]} e6 {[%emt 0:00:33]} 4. b3 {[%emt 0:00:31]} Be7 {[%emt 0:00:20]} 5. Bb2 {[%emt 0:00:48]} Nbd7 {[%emt 0:03:39][%cal Bb8d7,Bd7c5,Bc5e4][%mdl 32]} 6. g3 {[%emt 0:01:19]} O-O {[%emt 0:02:58]} 7. Bg2 {[%emt 0:00:39]} b6 {[%emt 0:00:44]} 8. O-O {[%emt 0:01:19]} Bb7 {[%emt 0:02:25]} 9. Qe2 {[%emt 0:00:34]} dxc4 {[%emt 0:08:56]} 10. bxc4 {[%emt 0:00:17]} Nc5 {[%emt 0:00:57]} 11. d4 {[%emt 0:00:56]} Nce4 {[%emt 0:00:59]} 12. Rd1 {[%emt 0:00:48]} Qc8 {[%emt 0:00:52]} (12... Ng4 $11) 13. Ne5 $14 {[%emt 0:00:33]} c5 {[%emt 0:05:59] [#]} ({Black should try} 13... Rd8 $14) 14. d5 $1 $16 {[%emt 0:00:57]} exd5 {[%emt 0:04:17]} 15. cxd5 {[%emt 0:00:05]} Rd8 {[%emt 0:03:42]} (15... Bxd5 $2 {loses.} 16. Rxd5 Nxd5 17. Bxe4 $18) 16. f3 {[%emt 0:11:38]} Nd6 {[%emt 0:00:10]} 17. e4 {[%emt 0:00:03]} Bf8 {[%emt 0:06:07]} 18. a4 {[%emt 0:01:54] White is more active.} Re8 {[%emt 0:03:05][%cal Bd8e8,Be8e5,Be5h5,Bh5h6][%mdl 32]} 19. Qc2 {[%emt 0:03:04]} a6 {[%emt 0:05:26]} 20. Nc4 {[%emt 0:12:17]} Nd7 {[%emt 0:07:34]} (20... Nxc4 $14 21. Qxc4 Rb8) 21. Nba3 {[%emt 0:00:48] Bh3 is the strong threat.} Nxc4 {[%emt 0:00:43]} 22. Qxc4 {[%emt 0:00:11]} Ne5 {[%emt 0:01:26]} 23. Bxe5 {[%emt 0:00:50]} Rxe5 {[%emt 0:00:10]} 24. Qc3 {[%emt 0:04:33]} Rh5 {[%emt 0:03:51][%cal Oc5c4] [#]} 25. Nc4 $1 {[%emt 0:00:36]} Rh6 {[%emt 0:01:19]} 26. Rab1 {[%emt 0:03:06]} Qd8 {[%emt 0:01:39]} 27. Qb3 {[%emt 0:05:36][%cal Rc4b6]} Rb8 {[%emt 0:00:33] [#]} 28. Nxb6 {[%emt 0:01:34]} (28. d6 $1 $18 Ba8 29. e5 (29. Nxb6 c4 $11)) 28... Bxd5 $1 $11 {[%emt 0:01:17]} 29. Qxd5 {[%emt 0:04:28]} Rhxb6 {[%emt 0:00:39]} (29... Rd6 $5 30. Qb3 Rxd1+ 31. Qxd1 Qxd1+ 32. Rxd1 Rxb6 $11) 30. Rxb6 {[%emt 0:04:20]} (30. Qxd8 $14 Rxd8 31. Rxb6 Rxd1+ 32. Bf1) 30... Qxd5 {[%emt 0:07:20]} (30... Qxb6 $11 31. Kh1 Qb2) 31. exd5 {[%emt 0:00:11]} Rxb6 $18 {[%emt 0:00:01][%mdl 4096] Endgame. KRB-KRB} 32. a5 {[%emt 0:00:59]} Rd6 {[%emt 0:01:15]} 33. f4 {[%emt 0:00:13]} Be7 {[%emt 0:00:53]} 34. Rb1 {[%emt 0:01:38]} g5 {[%emt 0:04:07]} 35. Rb7 {[%emt 0:09:16]} Bd8 {[%emt 0:01:15]} 36. fxg5 {[%emt 0:00:14]} Bxg5 {[%emt 0:01:53]} 37. Kf2 {[%emt 0:04:44]} Bd8 {[%emt 0:01:11]} 38. Ke3 {[%emt 0:01:59]} Bxa5 {[%emt 0:00:43]} 39. Ke4 {[%emt 0:00:06]} Rb6 {[%emt 0:04:59]} 40. Rxb6 {[%emt 0:02:18]} Bxb6 $11 {[%emt 0:00:01] KB-KB} 41. d6 {[%emt 0:00:10]} Kf8 {[%emt 0:01:47]} 42. Kd5 {[%emt 0:02:06]} c4 {[%emt 0:01:17]} 43. g4 {[%emt 0:02:27]} c3 {[%emt 0:01:05] Hoping for ...c2.} 44. Be4 {[%emt 0:00:02]} h6 {[%emt 0:01:05]} 45. Kc6 {[%emt 0:00:32]} Ba5 {[%emt 0:01:06]} 46. Kb7 {[%emt 0:00:48]} Bb4 {[%emt 0:01:17]} 47. Kc7 {[%emt 0:00:20]} Ba5+ {[%emt 0:01:54]} 48. Kc8 {[%emt 0:00:03]} Ke8 {[%emt 0:00:28]} 49. h4 {[%emt 0:02:15]} Kf8 {[%emt 0:01:04]} 50. Bc2 {[%emt 0:00:54]} Bb6 {[%emt 0:00:57]} 51. h5 {[%emt 0:00:23]} Kg7 {[%emt 0:01:37]} 52. Kb7 $1 {[%emt 0:03:58][%csl LRa6,LRb6]} (52. d7 $5 Kf6 $8 53. d8=R (53. d8=Q+ Bxd8 54. Kxd8 Kg5 $11) 53... Bxd8 54. Kxd8 $11) 52... Bd8 {[%emt 0:00:54]} 53. Kxa6 {[%emt 0:00:04]} Kf8 {[%emt 0:02:33]} 54. Kb7 {[%emt 0:00:25]} Ba5 {[%emt 0:00:16]} 55. Kc6 {[%emt 0:01:30]} Ke8 {[%emt 0:00:51]} 56. Ba4 {[%emt 0:00:37]} c2 {[%emt 0:01:20]} 57. Bxc2 $16 {[%emt 0:00:05]} Kd8 {[%emt 0:00:06]} 58. g5 {[%emt 0:00:13]} hxg5 {[%emt 0:00:29]} 59. Bf5 {[%emt 0:00:05]} Ke8 {[%emt 0:00:39]} 60. Kb5 {[%emt 0:01:54]} Bd8 {[%emt 0:00:15]} 61. Kc6 {[%emt 0:00:23]} ({Better is} 61. Kc4 $16) 61... Kf8 {[%emt 0:00:21]} (61... Ba5 $1 $11) 62. Kd7 {[%emt 0:00:04]} (62. Bg4 $16) 62... Ba5 $11 {[%emt 0:00:33] The position is equal.} 63. Bg4 {[%emt 0:00:12]} Kg7 {[%emt 0:00:16]} 64. Ke8 {[%emt 0:00:05]} f6 {[%emt 0:00:28]} 65. d7 {[%emt 0:00:16]} Kh6 {[%emt 0:00:12]} 66. d8=Q {[%emt 0:00:06]} (66. Kf7 {looks sharper.} f5 67. Be2 g4 68. Kf6) 66... Bxd8 {[%emt 0:00:05]} 67. Kxd8 {[%emt 0:00:03]} f5 {[%emt 0:00:08]} 68. Bxf5 {[%emt 0:00:03]} Kxh5 {[%emt 0:00:02]} 69. Ke7 {[%emt 0:00:05]} Kh4 {[%emt 0:00:35]} 70. Kf6 {[%emt 0:00:03]} g4 {[%emt 0:00:10]} 71. Bxg4 {[%emt 0:00:02]} Kxg4 {[%emt 0:00:02] Black defended with fortune.   Weighted Error Value: White=0.14 (very precise) /Black=0.15 (very precise) .  Mistake:       	White=4     	Black=6      Inaccurate:     	White=4     	Black=2      OK:         	White=15    	Black=29     Best:        	White=2     	Black=3      Strong:       	White=1     	Black=1      Brilliant:      	White=1     	---} 1/2-1/2